bitfinex-derivatives/quotes_SOLF0:USTF0_20220109
["timestamp","ask_amount","ask_price","bid_price","bid_amount"]
[1641765095914,3.98771298,142.3,142.27,2.34304462]
[1641765096315,3.98771298,142.3,142.27,4.85913802]
[1641765096715,3.98771298,142.3,142.27,2.5160934]
[1641765096915,3.98771298,142.3,142.24,42.55163875]
[1641765097516,3.98771298,142.3,142.25,4.85967527]
[1641765097916,3.98771298,142.3,142.26,2.34284142]
[1641765098215,3.98771298,142.3,142.26,4.85967527]
[1641765099116,3.98771298,142.3,142.26,2.34284142]
[1641765099917,2.46089059,142.29,142.26,2.34284142]
[1641765100121,8.45889059,142.29,142.26,2.34284142]
[1641765100517,3.98771298,142.28,142.26,2.34284142]
[1641765101421,3.98771298,142.3,142.26,2.34284142]
[1641765102521,3.98771298,142.3,142.26,10.32584142]
[1641765103421,2.46084312,142.29,142.26,10.32584142]
[1641765103824,3.98771298,142.28,142.26,10.32584142]
[1641765104723,3.98771298,142.3,142.26,10.32584142]
[1641765105423,3.98771298,142.3,142.27,2.51775256]
[1641765106224,3.98771298,142.3,142.26,10.32584142]
[1641765107125,2.46066989,142.29,142.26,10.32584142]
[1641765107827,3.98771298,142.28,142.27,2.51788177]
[1641765108228,3.98771298,142.3,142.27,2.51788177]
[1641765109431,2.46090868,142.29,142.26,2.34284142]
[1641765109933,3.98771298,142.28,142.26,2.34284142]
[1641765111238,3.98771298,142.3,142.26,2.34284142]
[1641765112244,2.46181858,142.29,142.26,2.34284142]
[1641765112838,3.98771298,142.28,142.25,5.62374307]
[1641765113338,3.98771298,142.28,142.26,2.34269338]
[1641765113539,3.98771298,142.28,142.27,2.51872942]
[1641765113939,3.98771298,142.3,142.27,4.8614228]
[1641765114140,3.98771298,142.3,142.27,2.34269338]
[1641765114340,3.98771298,142.3,142.25,8.007]
[1641765114841,3.98771298,142.3,142.26,2.34250773]
[1641765115242,3.98771298,142.3,142.26,4.86124303]
[1641765115646,70.86421298,142.31,142.27,2.34250773]
[1641765116042,3.98771298,142.3,142.27,2.34250773]
[1641765116442,3.98771298,142.3,142.27,4.86124303]
[1641765116743,3.98771298,142.3,142.27,2.5187353]
[1641765117144,3.98771298,142.3,142.25,2.5187353]
[1641765117644,3.98771298,142.3,142.26,2.34267045]
[1641765118649,3.98771298,142.3,142.27,2.5187353]
[1641765119952,3.98771298,142.3,142.25,2.5187353]
[1641765120953,3.98771298,142.3,142.26,2.3425757]
[1641765122254,3.98771298,142.3,142.27,2.5187353]
[1641765123557,3.98771298,142.3,142.25,2.5187353]
[1641765123956,3.98771298,142.3,142.26,2.34252298]
[1641765125056,3.98771298,142.3,142.27,2.5187353]
[1641765126260,7.98771298,142.3,142.27,2.5187353]
[1641765126660,13.60969494,142.3,142.25,2.5187353]
[1641765126864,4.0,142.28,142.25,2.5187353]
[1641765127062,1.756,142.27,142.25,2.5187353]
[1641765127262,3.98771298,142.27,142.25,2.5187353]
[1641765127464,1.756,142.26,142.21,27.44228835]
[1641765128365,3.98771298,142.25,142.22,2.34363751]
[1641765128965,3.98771298,142.26,142.22,2.34363751]
[1641765129265,3.98771298,142.26,142.23,2.5187353]
[1641765129865,3.98771298,142.26,142.24,2.34363751]
[1641765130865,3.98771298,142.26,142.21,2.34363751]
[1641765131065,10.99471298,142.26,142.21,2.34363751]
[1641765131668,10.99471298,142.26,142.22,2.51647566]
[1641765131865,3.98771298,142.25,142.22,2.51647566]
[1641765132265,3.98771298,142.25,142.23,2.34363751]
[1641765132667,3.98771298,142.26,142.23,2.34363751]
[1641765133571,3.98771298,142.26,142.21,2.34363751]
[1641765134576,3.98771298,142.26,142.22,2.51543692]
[1641765135474,3.98771298,142.26,142.23,2.34363751]
[1641765135974,3.98771298,142.26,142.24,2.51543692]
[1641765136674,3.98771298,142.26,142.22,6.28]
[1641765137075,3.98771298,142.26,142.23,2.34356615]
[1641765137474,3.98771298,142.26,142.23,4.85889285]
[1641765138075,3.98771298,142.26,142.24,2.34356615]
[1641765138276,3.98771298,142.26,142.24,4.85889285]
[1641765139077,3.98771298,142.26,142.25,2.34356615]
[1641765139479,3.98771298,142.28,142.22,2.34356615]
[1641765139879,3.98771298,142.28,142.23,2.51521364]
[1641765140280,3.98771298,142.28,142.24,2.34356615]
[1641765140881,27.66479,142.27,142.24,2.34356615]
[1641765141083,3.98771298,142.28,142.24,2.34356615]
[1641765142082,3.98771298,142.28,142.22,2.34356615]
[1641765142284,7.98771298,142.28,142.22,2.34356615]
[1641765142482,3.98771298,142.28,142.22,2.34356615]
[1641765142684,3.98771298,142.28,142.23,2.51532367]
[1641765142884,27.66479,142.27,142.23,2.51532367]
[1641765143284,3.98771298,142.26,142.24,2.34356615]
[1641765144486,3.98771298,142.26,142.22,2.34356615]
[1641765145288,3.98771298,142.26,142.23,2.51527987]
[1641765145688,3.98771298,142.27,142.24,2.34356615]
[1641765146889,31.65250298,142.27,142.24,2.34356615]
[1641765147289,3.98771298,142.26,142.22,2.34356615]
[1641765147689,3.98771298,142.27,142.22,2.34356615]
[1641765148091,3.98771298,142.27,142.23,2.51604076]
[1641765148496,3.98771298,142.27,142.24,2.34356615]
[1641765148993,31.65250298,142.27,142.24,2.34356615]
[1641765149500,3.98771298,142.26,142.24,2.34356615]
[1641765149797,3.98771298,142.26,142.22,2.34356615]
[1641765150599,3.98771298,142.26,142.23,2.51655968]
[1641765151002,31.65250298,142.27,142.24,2.34356615]
[1641765151401,3.98771298,142.27,142.24,2.34356615]
[1641765151600,3.98771298,142.26,142.24,2.34356615]
[1641765152002,3.98771298,142.27,142.24,2.34356615]
[1641765152402,3.98771298,142.27,142.22,2.34356615]
[1641765152604,3.98771298,142.27,142.24,8.259]
[1641765153303,3.98771298,142.27,142.25,4.86087622]
[1641765153802,3.98771298,142.27,142.25,2.51731007]
[1641765154005,3.98771298,142.27,142.24,8.259]
[1641765154404,3.98771298,142.27,142.25,2.34342456]
[1641765154705,3.98771298,142.27,142.25,4.86179152]
[1641765155206,3.98771298,142.27,142.25,2.51836696]
[1641765155505,3.98771298,142.27,142.24,8.259]
[1641765156106,3.98771298,142.27,142.25,4.86179932]
[1641765156608,3.98771298,142.27,142.25,2.51836924]
[1641765156810,3.98771298,142.27,142.24,8.259]
[1641765157512,3.98771298,142.27,142.25,4.86332755]
[1641765157911,3.98771298,142.27,142.25,2.51991187]
[1641765158109,3.98771298,142.27,142.25,7.292]
[1641765163517,3.98771298,142.27,142.22,24.92216693]
[1641765163919,3.98771298,142.27,142.23,2.34348068]
[1641765164919,3.98771298,142.27,142.24,2.52074091]
[1641765165119,3.98771298,142.27,142.24,9.93274091]
[1641765165321,3.98771298,142.27,142.25,2.52074091]
[1641765170729,3.98771298,142.27,142.26,4.0]
[1641765170925,14.88684875,142.29,142.26,4.0]
[1641765171128,4.875e-05,142.29,142.28,4.0]
[1641765171327,4.875e-05,142.29,142.28,5.906]
[1641765171926,27.66479,142.32,142.28,5.906]
[1641765171927,27.66479,142.32,142.28,8.42674091]
[1641765172326,3.98910187,142.31,142.28,11.79344475]
[1641765172726,3.98910187,142.31,142.29,3.36670384]
[1641765173127,3.98910187,142.31,142.29,5.88744475]
[1641765173328,31.65389187,142.31,142.29,5.88744475]
[1641765173527,27.66479,142.31,142.29,2.52074091]
[1641765173728,27.66479,142.31,142.24,27.66479]
[1641765173929,1.756,142.3,142.24,27.66479]
[1641765174127,5.74510187,142.3,142.24,27.66479]
[1641765174528,5.74510187,142.3,142.25,3.36756537]
[1641765174928,3.98910187,142.29,142.22,13.39535179]
[1641765175329,3.98910187,142.29,142.23,3.36756537]
[1641765175528,27.66479,142.28,142.23,3.36756537]
[1641765175729,35.76679,142.28,142.23,3.36756537]
[1641765176229,3.98910187,142.27,142.23,3.36756537]
[1641765180335,3.98910187,142.27,142.22,3.36756537]
[1641765180536,5.74510187,142.27,142.24,3.36756537]
[1641765180735,3.98910187,142.27,142.24,3.36756537]
[1641765181138,3.98910187,142.26,142.22,3.36756537]
[1641765181537,3.98910187,142.27,142.22,3.36756537]
[1641765181936,3.98910187,142.27,142.21,3.36756537]
[1641765182335,3.98910187,142.27,142.21,13.39882497]
[1641765182737,3.98910187,142.27,142.23,3.36756537]
[1641765183336,3.98910187,142.27,142.22,3.36756537]
[1641765187540,7.98910187,142.27,142.22,3.36756537]
[1641765187941,3.98910187,142.27,142.22,3.36756537]
[1641765188143,3.98910187,142.26,142.22,7.36756537]
[1641765188542,3.98910187,142.26,142.22,3.36756537]
[1641765188743,3.98910187,142.26,142.23,3.36756537]
[1641765189143,3.98910187,142.26,142.22,3.36756537]
[1641765191046,3.98910187,142.26,142.22,7.36756537]
[1641765191647,3.98910187,142.26,142.23,3.36756537]
[1641765192647,3.98910187,142.26,142.22,3.36756537]
[1641765195852,3.98910187,142.26,142.22,7.36756537]
[1641765196053,3.98910187,142.26,142.22,3.36756537]
[1641765197855,3.98910187,142.26,142.22,7.36756537]
[1641765198355,3.98910187,142.26,142.22,3.36756537]
[1641765198556,3.98910187,142.26,142.23,3.36756537]
[1641765198957,3.98910187,142.26,142.22,3.36756537]
[1641765203062,3.98910187,142.26,142.23,14.92697532]
[1641765203663,3.98910187,142.26,142.24,3.36756537]
[1641765204967,3.98910187,142.26,142.23,3.36756537]
[1641765206569,3.98910187,142.26,142.25,4.0]
[1641765206776,14.92697532,142.3,142.25,11.189]
[1641765206969,14.92697532,142.3,142.25,18.21541934]
[1641765207168,14.92697532,142.3,142.26,4.0]
[1641765207369,14.92697532,142.3,142.26,9.62340664]
[1641765207670,14.92697532,142.33,142.26,24.55038196]
[1641765207867,14.92697532,142.33,142.27,27.66479]
[1641765208072,14.92697532,142.33,142.27,31.65362207]
[1641765208270,3.4149509,142.32,142.29,7.02444507]
[1641765208472,3.4149509,142.32,142.29,14.20044507]
[1641765208673,3.4149509,142.32,142.29,18.20044507]
[1641765208871,3.4149509,142.32,142.29,14.20044507]
[1641765209070,3.4149509,142.32,142.3,3.98883207]
[1641765209469,3.4149509,142.34,142.3,3.98883207]
[1641765210671,3.4149509,142.35,142.3,3.98883207]
[1641765213271,5.1709509,142.35,142.3,3.98883207]
[1641765213773,3.4149509,142.34,142.3,3.98883207]
[1641765213971,3.4149509,142.34,142.3,7.98883207]
[1641765214173,14.92697532,142.38,142.31,11.02321171]
[1641765214374,14.92697532,142.38,142.32,7.3770076]
[1641765214576,14.92697532,142.38,142.32,14.3500076]
[1641765214776,14.92697532,142.42,142.32,14.3500076]
[1641765215577,2.44722864,142.42,142.33,3.98732928]
[1641765215776,2.38927127,142.41,142.33,3.98732928]
[1641765215977,2.38927127,142.41,142.33,31.65211928]
[1641765216876,2.38927127,142.41,142.34,3.98732928]
[1641765217479,2.38927127,142.41,142.36,5.61941284]
[1641765217678,2.38927127,142.41,142.36,15.77441284]
[1641765217878,2.38927127,142.41,142.36,41.68520284]
[1641765218079,2.38927127,142.41,142.37,3.98732928]
[1641765218480,2.38927127,142.43,142.37,3.98732928]
[1641765218880,2.38927127,142.44,142.37,3.98732928]
[1641765220080,2.44437252,142.43,142.37,12.91732928]
[1641765220481,2.38927127,142.42,142.37,8.93]
[1641765221285,2.38927127,142.42,142.38,4.0]
[1641765221585,2.38927127,142.42,142.38,5.754]
[1641765221782,2.38927127,142.44,142.38,1.754]
[1641765222984,2.38927127,142.44,142.38,5.754]
[1641765223184,2.38927127,142.44,142.39,3.9863488]
[1641765223486,2.38927127,142.44,142.39,13.60436863]
[1641765223685,2.38927127,142.44,142.4,4.0]
[1641765223889,2.38927127,142.44,142.4,10.901]
[1641765224093,2.38927127,142.44,142.4,14.901]
[1641765224290,2.38927127,142.44,142.4,10.901]
[1641765224891,2.38927127,142.44,142.41,3.98614917]
[1641765226190,2.38927127,142.44,142.4,10.901]
[1641765226390,2.38927127,142.44,142.4,9.147]
[1641765226891,8.14327127,142.44,142.4,0.0001]
[1641765227093,4.0,142.43,142.35,5.61986815]
[1641765227292,5.754,142.43,142.35,5.61986815]
[1641765227693,5.754,142.43,142.34,1.754]
[1641765227893,4.0,142.41,142.36,3.98712349]
[1641765228092,29.41879,142.4,142.36,3.98712349]
[1641765228293,29.41879,142.4,142.35,4.0]
[1641765228294,30.05406127,142.4,142.35,4.0]
[1641765228694,2.38927127,142.39,142.36,3.98712349]
[1641765228895,2.38927127,142.39,142.36,9.70912349]
[1641765229093,2.38927127,142.39,142.36,13.70912349]
[1641765229294,2.38927127,142.39,142.37,4.0]
[1641765229493,2.38927127,142.39,142.37,7.98712349]
[1641765229693,2.38927127,142.39,142.37,9.74112349]
[1641765229994,2.38927127,142.44,142.38,31.65191349]
[1641765230597,2.38927127,142.44,142.39,3.98712349]
[1641765230797,2.38927127,142.44,142.39,9.81912349]
[1641765231396,2.38927127,142.44,142.39,5.832]
[1641765235698,2.38927127,142.44,142.37,1.754]
[1641765235899,2.38927127,142.44,142.37,5.754]
[1641765236297,2.38927127,142.44,142.38,3.98647695]
[1641765236499,2.38927127,142.44,142.38,12.81147695]
[1641765237198,2.38927127,142.44,142.39,3.98647695]
[1641765239401,2.38927127,142.44,142.38,3.98647695]
[1641765239602,2.38927127,142.44,142.38,7.98647695]
[1641765239903,2.38927127,142.44,142.39,5.61833448]
[1641765240103,2.38927127,142.44,142.39,13.94933448]
[1641765240504,2.38927127,142.44,142.4,3.98647695]
[1641765244905,2.38927127,142.44,142.39,3.98647695]
[1641765245108,11.65027127,142.44,142.39,3.98647695]
[1641765245306,1.754,142.43,142.39,3.98647695]
[1641765245506,4.14327127,142.43,142.37,3.98647695]
[1641765246109,2.38927127,142.42,142.37,3.98647695]
[1641765247012,4.84429811,142.42,142.37,3.98647695]
[1641765247411,2.38927127,142.41,142.37,3.98647695]
[1641765247614,2.38927127,142.41,142.38,2.51405971]
[1641765248011,2.38927127,142.42,142.39,3.98647695]
[1641765249211,2.38927127,142.42,142.4,4.0]
[1641765249411,2.38927127,142.42,142.4,8.378]
[1641765249612,1.28347798,142.42,142.4,8.378]
[1641765249811,1.28347798,142.44,142.41,3.98647695]
[1641765250215,27.66479,142.47,142.43,4.0]
[1641765250413,27.66479,142.47,142.46,4.0]
[1641765250612,27.66479,142.47,142.46,10.085]
[1641765250811,27.66479,142.47,142.46,6.085]
[1641765251215,29.83127336,142.47,142.46,10.06939076]
[1641765252315,2.16648336,142.47,142.46,10.06939076]
[1641765252516,2.16648336,142.47,142.46,21.43895614]
[1641765252718,174.12441155,142.54,142.46,21.43895614]
[1641765252719,2.16648336,142.5,142.46,23.95188726]
[1641765252919,2.16648336,142.5,142.47,1.754]
[1641765253219,2.16648336,142.52,142.47,5.73839076]
[1641765253718,2.16648336,142.52,142.48,3.98439076]
[1641765254519,2.45400437,142.51,142.48,3.98439076]
[1641765255122,2.16648336,142.5,142.48,3.98439076]
[1641765256123,2.16648336,142.5,142.48,7.98439076]
[1641765256323,2.16648336,142.5,142.48,3.98439076]
[1641765256723,2.16648336,142.52,142.48,3.98439076]
[1641765257323,2.16648336,142.51,142.48,3.98439076]
[1641765257624,2.16648336,142.5,142.48,3.98439076]
[1641765257825,2.16648336,142.5,142.48,7.98439076]
[1641765258224,2.16648336,142.49,142.48,7.98439076]
[1641765259323,79.62007532,142.55,142.48,13.5989134]
[1641765259524,79.62007532,142.55,142.5,20.0]
[1641765260125,14.92697532,142.55,142.51,7.36761355]
[1641765260327,14.92697532,142.55,142.51,42.67340355]
[1641765260525,2.45452605,142.54,142.53,9.61280593]
[1641765260725,4.29286121,142.54,142.53,11.36480593]
[1641765260925,4.29286121,142.54,142.53,7.36480593]
[1641765261328,4.29286121,142.54,142.53,11.34780375]
[1641765261728,1.83833516,142.54,142.53,3.98299782]
[1641765262127,1.83833516,142.58,142.51,33.27840355]
[1641765262727,1.83833516,142.58,142.52,3.98285801]
[1641765263827,5.83833516,142.58,142.52,3.98285801]
[1641765264027,7.59033516,142.58,142.52,3.98285801]
[1641765264427,29.50312516,142.57,142.52,3.98285801]
[1641765264827,1.83833516,142.56,142.52,3.98285801]
[1641765265328,1.83833516,142.55,142.52,3.98285801]
[1641765265728,1.83833516,142.54,142.52,3.98285801]
[1641765266127,1.83833516,142.53,142.52,3.98285801]
[1641765270631,1.83833516,142.53,142.49,31.64764801]
[1641765271234,1.83833516,142.52,142.5,3.98285801]
[1641765271634,1.83833516,142.51,142.5,3.98285801]
[1641765275839,1.83833516,142.51,142.5,9.59674449]
[1641765276838,1.83833516,142.51,142.5,12.11064883]
[1641765278041,1.83833516,142.51,142.5,6.49676235]
[1641765280547,1.83833516,142.51,142.5,3.98285801]
[1641765281049,1.83833516,142.51,142.48,3.98285801]
[1641765281447,1.83833516,142.5,142.48,3.98285801]
[1641765281747,1.83833516,142.49,142.48,3.98285801]
[1641765282348,1.83833516,142.49,142.48,6.49767478]
[1641765282647,1.83833516,142.49,142.48,2.51481677]
[1641765283049,1.83833516,142.49,142.48,3.98285801]
[1641765284048,1.83833516,142.49,142.46,3.98285801]
[1641765284449,1.83833516,142.48,142.46,3.98285801]
[1641765284949,1.83833516,142.47,142.46,3.98285801]
[1641765285348,1.83833516,142.47,142.46,6.49787659]
[1641765289756,1.83833516,142.47,142.46,3.98285801]
[1641765290157,1.83833516,142.47,142.41,103.29607699]
[1641765290158,1.83833516,142.47,142.44,3.98285801]
[1641765290558,1.83833516,142.46,142.42,3.98285801]
[1641765290960,1.83833516,142.45,142.42,3.98285801]
[1641765291659,1.83833516,142.44,142.42,3.98285801]
[1641765292057,4.0,142.49,142.43,2.50781627]
[1641765292258,4.0,142.49,142.43,10.78381627]
[1641765292460,4.0,142.5,142.43,10.78381627]
[1641765292660,1.4069195,142.48,142.44,3.98285801]
[1641765292860,5.4069195,142.48,142.44,3.98285801]
[1641765293561,1.4069195,142.47,142.44,3.98285801]
[1641765295468,5.4069195,142.47,142.44,3.98285801]
[1641765295669,4.0,142.46,142.44,3.98285801]
[1641765296069,5.4069195,142.47,142.44,3.98285801]
[1641765296269,1.4069195,142.45,142.42,3.98285801]
[1641765296570,4.0,142.47,142.42,3.98285801]
[1641765296571,1.4069195,142.46,142.42,3.98285801]
[1641765297071,1.4069195,142.46,142.42,13.11685801]
[1641765297470,1.4069195,142.47,142.43,3.98285801]
[1641765298772,1.4069195,142.47,142.42,3.98285801]
[1641765299273,23.0717095,142.49,142.42,3.98285801]
[1641765299472,67.4056,142.51,142.43,14.38777476]
[1641765299674,67.4056,142.51,142.43,80.35367476]
[1641765300073,4.0,142.5,142.44,2.50574206]
[1641765300475,4.0,142.47,142.44,2.50574206]
[1641765300676,4.0,142.48,142.45,3.98478512]
[1641765300875,1.26618606,142.49,142.45,3.98478512]
[1641765301074,5.26618606,142.47,142.45,3.98478512]
[1641765301475,1.26618606,142.47,142.45,3.98478512]
[1641765301675,1.26618606,142.46,142.45,3.98478512]
[1641765302477,5.26618606,142.49,142.45,3.98478512]
[1641765302676,5.26618606,142.49,142.45,13.22678512]
[1641765302877,1.26618606,142.48,142.45,13.22678512]
[1641765303377,1.26618606,142.48,142.46,3.98478512]
[1641765303877,1.26618606,142.5,142.46,3.98478512]
[1641765304280,1.26618606,142.47,142.46,5.73878512]
[1641765304478,14.92697532,142.53,142.47,4.34898605]
[1641765304877,14.92697532,142.53,142.46,25.73878512]
[1641765305077,14.92697532,142.53,142.48,27.66479]
[1641765305277,14.92697532,142.53,142.48,33.59079]
[1641765305979,0.9980646,142.52,142.49,3.98353365]
[1641765306380,0.9980646,142.53,142.49,3.98353365]
[1641765307381,0.9980646,142.54,142.49,3.98353365]
[1641765309884,0.9980646,142.54,142.49,5.73753365]
[1641765310385,0.9980646,142.54,142.5,3.98353365]
[1641765312086,0.9980646,142.54,142.49,3.98353365]
[1641765312286,4.9980646,142.54,142.49,3.98353365]
[1641765312886,2.45020122,142.53,142.49,3.98353365]
[1641765313086,3.44826582,142.53,142.49,3.98353365]
[1641765313387,0.9980646,142.52,142.49,3.98353365]
[1641765313787,0.9980646,142.51,142.49,3.98353365]
[1641765314387,88.58337532,142.55,142.49,3.98353365]
[1641765314388,0.9980646,142.5,142.49,3.98353365]
[1641765316191,0.9980646,142.5,142.48,27.66479]
[1641765316392,0.9980646,142.5,142.45,67.4905]
[1641765316592,0.9980646,142.49,142.44,27.66479]
[1641765316996,0.9980646,142.48,142.45,3.98530945]
[1641765317294,0.9980646,142.48,142.45,10.42430945]
[1641765317493,14.92697532,142.53,142.45,19.19486853]
[1641765317693,14.92697532,142.53,142.47,27.66479]
[1641765318294,6.45088627,142.54,142.48,3.98530945]
[1641765318495,0.79694534,142.52,142.48,3.98530945]
[1641765318794,4.0,142.52,142.48,3.98530945]
[1641765319195,0.79694534,142.51,142.47,3.98530945]
[1641765319795,0.79694534,142.52,142.46,3.98530945]
[1641765320196,4.79694534,142.52,142.46,3.98530945]
[1641765320597,0.79694534,142.51,142.46,3.98530945]
[1641765320996,2.45157458,142.51,142.46,3.98530945]
[1641765321901,0.79694534,142.5,142.46,3.98530945]
[1641765323204,0.79694534,142.52,142.46,3.98530945]
[1641765323404,0.79694534,142.52,142.46,12.40730945]
[1641765323605,0.79694534,142.52,142.46,19.42337624]
[1641765323804,0.79694534,142.49,142.46,19.42337624]
[1641765324007,0.79694534,142.49,142.47,2.51116093]
[1641765324206,0.79694534,142.53,142.47,6.49647038]
[1641765324608,0.79694534,142.54,142.48,27.98530945]
[1641765325209,0.79694534,142.54,142.49,3.98530945]
[1641765325410,0.79694534,142.54,142.49,11.37030945]
[1641765325909,0.79694534,142.54,142.5,3.98530945]
[1641765326309,2.4531338,142.53,142.5,3.98530945]
[1641765326908,0.79694534,142.52,142.49,7.385]
[1641765327310,0.79694534,142.52,142.5,3.98458444]
[1641765327712,0.79694534,142.52,142.49,7.385]
[1641765328313,0.79694534,142.52,142.5,3.98453116]
[1641765328813,0.79694534,142.53,142.5,3.98453116]
[1641765329214,0.79694534,142.51,142.48,3.98453116]
[1641765329716,2.45453386,142.52,142.48,3.98453116]
[1641765329914,0.79694534,142.5,142.48,3.98453116]
[1641765330515,0.79694534,142.51,142.48,3.98453116]
[1641765330816,0.79694534,142.52,142.48,3.98453116]
[1641765331720,0.79694534,142.53,142.48,3.98453116]
[1641765332120,4.79694534,142.53,142.48,3.98453116]
[1641765332519,0.79694534,142.53,142.48,3.98453116]
[1641765332718,3.2519277,142.52,142.48,3.98453116]
[1641765333120,0.79694534,142.51,142.48,3.98453116]
[1641765333520,7.2519277,142.51,142.48,3.98453116]
[1641765333920,4.79694534,142.5,142.48,3.98453116]
[1641765334320,0.79694534,142.49,142.45,3.98453116]
[1641765335120,2.45498236,142.48,142.45,3.98453116]
[1641765335621,0.79694534,142.47,142.45,3.98453116]
[1641765336521,0.79694534,142.5,142.45,3.98453116]
[1641765337223,2.45630003,142.49,142.45,3.98453116]
[1641765337923,0.79694534,142.48,142.45,3.98453116]
[1641765339526,0.79694534,142.5,142.45,3.98453116]
[1641765339725,0.79694534,142.5,142.45,5.73853116]
[1641765339927,0.79694534,142.5,142.46,2.51404027]
[1641765340125,0.79694534,142.5,142.46,6.49857143]
[1641765340526,0.79694534,142.5,142.47,3.98453116]
[1641765340724,148.01077532,142.53,142.47,3.98453116]
[1641765340725,0.79694534,142.52,142.47,3.98453116]
[1641765340925,0.79694534,142.49,142.47,3.98453116]
[1641765341625,2.45523827,142.51,142.47,3.98453116]
[1641765342125,0.79694534,142.5,142.46,3.98453116]
[1641765342326,0.79694534,142.5,142.48,2.5142245]
[1641765342925,0.79694534,142.5,142.49,3.98453116]
[1641765343327,0.79694534,142.5,142.48,3.98453116]
[1641765343627,0.79694534,142.52,142.48,3.98453116]
[1641765343925,0.79694534,142.49,142.48,3.98453116]
[1641765344227,0.79694534,142.51,142.48,3.98453116]
[1641765344828,82.06547532,142.53,142.46,31.64932116]
[1641765344829,4.79694534,142.52,142.46,31.64932116]
[1641765345033,0.79694534,142.5,142.46,27.66479]
[1641765345529,0.79694534,142.5,142.47,3.98467766]
[1641765345728,0.79694534,142.5,142.47,6.49893294]
[1641765345931,0.79694534,142.52,142.47,6.49893294]
[1641765346330,0.79694534,142.52,142.48,3.98467766]
[1641765346529,2.45552538,142.51,142.48,6.49893294]
[1641765347329,0.79694534,142.5,142.49,3.98467766]
[1641765348229,0.79694534,142.52,142.47,3.98467766]
[1641765348428,0.79694534,142.52,142.47,5.73867766]
[1641765348929,0.79694534,142.52,142.48,2.51420433]
[1641765349331,0.79694534,142.52,142.49,3.98467766]
[1641765351032,0.79694534,142.52,142.48,3.98467766]
[1641765354336,8.05494534,142.52,142.47,3.98467766]
[1641765354939,0.79694534,142.51,142.47,3.98467766]
[1641765355140,0.79694534,142.51,142.48,2.51416512]
[1641765355343,4.0,142.49,142.45,14.92697532]
[1641765355541,4.0,142.46,142.45,14.92697532]
[1641765355742,11.596,142.46,142.45,14.92697532]
[1641765355942,11.596,142.46,142.41,14.92697532]
[1641765356542,0.79719047,142.45,142.42,3.98595233]
[1641765357643,0.79719047,142.45,142.41,3.98595233]
[1641765357843,4.79719047,142.45,142.41,3.98595233]
[1641765358047,4.0,142.44,142.41,3.98595233]
[1641765358245,4.0,142.42,142.39,24.94839199]
[1641765358446,4.0,142.4,142.36,39.30311155]
[1641765358646,4.0,142.37,142.36,39.30311155]
[1641765358945,7.901,142.37,142.36,39.30311155]
[1641765359346,7.901,142.37,142.36,43.29023034]
[1641765359547,7.901,142.37,142.36,3.98711879]
[1641765360145,11.901,142.37,142.31,11.74813178]
[1641765360445,9.70425308,142.37,142.31,9.99413178]
[1641765360647,7.901,142.37,142.31,9.99413178]
[1641765360848,13.657,142.37,142.31,9.99413178]
[1641765361046,39.56579,142.37,142.31,9.99413178]
[1641765361448,1.80272065,142.36,142.3,34.68874168]
[1641765362548,1.80272065,142.36,142.27,47.66479]
[1641765362748,71.12182065,142.36,142.27,47.66479]
[1641765363149,1.80272065,142.36,142.27,51.66479]
[1641765363348,1.80272065,142.35,142.3,7.02395168]
[1641765363748,1.80272065,142.36,142.3,7.02395168]
[1641765365049,1.80272065,142.36,142.3,34.68874168]
[1641765365450,5.80272065,142.36,142.3,34.68874168]
[1641765366051,27.66479,142.37,142.3,34.68874168]
[1641765366250,29.42079,142.37,142.3,34.68874168]
[1641765366450,3.3972874,142.36,142.3,34.68874168]
[1641765366652,3.3972874,142.36,142.3,58.68874168]
[1641765366850,3.3972874,142.36,142.33,24.0]
[1641765367051,163.00139,142.42,142.34,27.66479]
[1641765367251,27.66479,142.42,142.34,29.41879]
[1641765367852,27.66479,142.42,142.34,36.44076879]
[1641765368052,3.17447557,142.41,142.34,36.44076879]
[1641765368852,3.17447557,142.41,142.34,8.77597879]
[1641765369053,3.17447557,142.43,142.34,8.77597879]
[1641765369453,3.17447557,142.43,142.35,27.66479]
[1641765369854,7.17447557,142.43,142.35,27.66479]
[1641765370255,3.17447557,142.42,142.35,27.66479]
[1641765371456,7.17447557,142.42,142.35,27.66479]
[1641765371857,3.17447557,142.41,142.35,27.66479]
[1641765372857,7.17447557,142.41,142.35,27.66479]
[1641765373661,7.17447557,142.4,142.35,27.66479]
[1641765373857,10.09047557,142.4,142.35,27.66479]
[1641765374461,3.17447557,142.39,142.35,27.66479]
[1641765375361,3.17447557,142.39,142.36,3.98769648]
[1641765377063,7.17447557,142.4,142.36,3.98769648]
[1641765377263,3.17447557,142.4,142.36,3.98769648]
[1641765377464,3.17447557,142.39,142.34,3.98769648]
[1641765377866,3.17447557,142.4,142.34,3.98769648]
[1641765378368,7.17447557,142.4,142.34,3.98769648]